bitfinex/quotes_ETHUSD_20250822
["timestamp","ask_amount","ask_price","bid_price","bid_amount"]
[1755875182188,0.1072,4672.2,4671.5,0.1072]
[1755875182394,0.1072,4672.2,4671.0,0.16294436]
[1755875182395,0.47915456,4672.1,4671.0,0.16294436]
[1755875182694,0.47915456,4672.1,4668.9,1.646]
[1755875182695,0.1072,4671.1,4668.9,1.646]
[1755875182997,0.4524,4672.1,4670.6,0.1072]
[1755875182998,0.02676086,4671.0,4670.6,0.1072]
[1755875183198,0.5596,4671.0,4670.3,0.1072]
[1755875183636,0.4524,4671.4,4669.3,2.14162972]
[1755875183801,0.02675914,4671.3,4669.5,2.14155505]
[1755875184044,0.4524,4671.4,4669.6,2.14150606]
[1755875184236,0.4524,4672.2,4669.2,3.0]
[1755875184528,0.02675456,4672.1,4668.9,1.90205235]
[1755875184823,0.4524,4672.0,4669.0,4.461]
[1755875185027,1.80519118,4671.9,4669.0,4.461]
[1755875185212,0.4524,4672.0,4669.1,12.341456]
[1755875185412,0.0267557,4671.9,4669.2,2.738164]
[1755875185720,0.0267557,4671.9,4669.2,2.0682]
[1755875185920,10.0012,4673.0,4669.9,0.66]
[1755875186091,10.0012,4673.0,4670.6,2.14101137]
[1755875186291,10.0012,4673.0,4670.8,3.0]
[1755875186520,10.0012,4673.0,4670.9,2.253254]
[1755875186796,9.67971793,4673.0,4672.9,2.13999871]
[1755875186990,9.67971793,4673.0,4672.9,8.24199871]
[1755875187220,9.35823586,4673.0,4672.9,8.24199871]
[1755875187402,9.35533586,4673.0,4672.9,6.102]
[1755875187601,9.35533586,4673.0,4672.9,6.106]
[1755875187800,9.35533586,4673.0,4672.9,6.104]
[1755875188224,9.03385379,4673.0,4672.9,8.24399871]
[1755875188612,8.71237172,4673.0,4672.9,8.24399871]
[1755875189006,8.39088965,4673.0,4672.9,8.24399871]
[1755875189327,8.39088965,4673.0,4672.9,1.80609785]
[1755875189495,8.39088965,4673.0,4672.9,6.25509785]
[1755875189695,8.39088965,4673.0,4672.9,1.80609785]
[1755875189926,8.39088965,4673.0,4672.9,6.25509785]
[1755875190115,8.39088965,4673.0,4672.9,1.80609785]
[1755875191110,8.39088965,4673.0,4672.9,6.25209785]
[1755875191307,8.06940758,4673.0,4672.9,8.39209656]
[1755875191511,8.06940758,4673.0,4672.9,3.94609656]
[1755875191710,7.74810042,4673.0,4672.9,6.25209785]
[1755875191913,7.74810042,4673.0,4672.9,1.80609785]
[1755875192114,7.74810042,4673.0,4672.9,6.25009785]
[1755875192347,7.74810042,4673.0,4672.9,1.80609785]
[1755875192634,8.20050042,4673.0,4672.9,1.80609785]
[1755875192950,7.74810042,4673.0,4672.9,6.24709785]
[1755875193261,8.20050042,4673.0,4672.9,0.16009785]
[1755875193540,8.97521437,4673.0,4670.8,4.444]
[1755875193726,0.1072,4672.4,4671.8,0.1072]
[1755875194057,12.96581437,4673.0,4670.8,0.16314427]
[1755875194058,0.4524,4672.3,4670.8,0.16314427]
[1755875194340,0.1072,4671.9,4671.2,0.1072]
[1755875194524,0.4524,4671.8,4670.2,4.437]
[1755875194732,0.13395284,4672.4,4671.7,0.1072]
[1755875195032,8.19970042,4673.0,4671.7,0.1072]
[1755875195235,8.19970042,4673.0,4671.2,4.439]
[1755875195236,8.19970042,4673.0,4672.7,0.1072]
[1755875195436,0.4524,4672.9,4672.7,0.1072]
[1755875195644,0.4524,4672.9,4672.4,0.1072]
[1755875195829,0.4524,4672.9,4671.8,4.44]
[1755875195830,0.47914998,4672.9,4672.8,0.1072]
[1755875196029,7.74730042,4673.0,4672.8,0.1072]
[1755875196253,0.4524,4672.9,4672.8,0.1072]
[1755875196538,0.47914998,4672.9,4671.0,1.645]
[1755875196733,0.47914998,4672.9,4672.4,0.1072]
[1755875196945,0.47914998,4672.9,4671.0,1.645]
[1755875197150,0.1072,4672.5,4671.7,0.1072]
[1755875197314,0.1072,4672.5,4669.6,2.14148049]
[1755875197315,4.8844,4672.4,4670.2,0.16115977]
[1755875197630,0.02675341,4672.3,4669.7,1.645]
[1755875197946,0.02675341,4672.3,4669.8,4.442]
[1755875198107,0.4524,4672.2,4669.9,4.44]
[1755875198310,0.02675456,4672.1,4670.0,4.438]
[1755875198707,0.4524,4672.2,4670.0,4.438]
[1755875198708,0.4524,4672.2,4670.2,2.1412333]
[1755875198908,0.02675456,4672.1,4670.0,4.438]
[1755875199114,0.02675456,4672.1,4670.2,2.14119166]
[1755875199312,0.4524,4672.2,4670.3,4.435]
[1755875199521,9.39230042,4673.0,4670.3,4.435]
[1755875199731,0.4712,4672.4,4670.3,4.435]
[1755875199926,0.4712,4672.4,4670.1,2.14126327]
[1755875199927,0.4712,4672.4,4669.9,0.16286669]
[1755875200219,4.45875341,4672.3,4669.7,1.645]
[1755875200410,0.4712,4672.2,4669.7,1.645]
[1755875200610,0.02675456,4672.1,4669.7,1.645]
[1755875200811,0.4712,4672.0,4669.7,1.80580259]
[1755875201112,0.0267557,4671.9,4669.7,6.23980259]
[1755875201341,0.4712,4671.8,4669.8,4.433]
[1755875201511,0.4712,4671.8,4669.7,1.80580259]
[1755875201512,0.02675685,4671.7,4669.7,1.80580259]
[1755875201850,0.4712,4671.6,4669.7,1.80580259]
[1755875202010,0.026758,4671.5,4669.7,1.80580259]
[1755875202352,0.4712,4671.4,4669.7,1.80580259]
[1755875202547,0.9645958,4671.4,4669.7,1.80580259]
[1755875202747,0.4933958,4671.4,4669.7,1.80580259]
[1755875202964,0.66,4671.2,4669.7,0.16080259]
[1755875203168,0.49796029,4671.1,4669.0,0.001]
[1755875203366,0.66,4671.0,4669.0,0.001]
[1755875203549,0.47772159,4670.9,4669.0,0.001]
[1755875203751,1.645,4670.8,4669.0,0.001]
[1755875203932,4.45276258,4670.7,4669.0,0.15877069]
[1755875204135,0.4712,4670.6,4669.0,0.15877069]
[1755875204664,0.02676372,4670.5,4669.0,0.15877069]
[1755875204866,0.54106067,4670.4,4669.0,0.15877069]
[1755875205166,1.01226067,4670.4,4669.0,0.15877069]
[1755875205466,0.4712,4670.3,4669.0,0.15877069]
[1755875205664,0.02676544,4670.2,4669.0,0.15877069]
[1755875205876,0.68676544,4670.2,4669.0,0.15877069]
[1755875206081,0.56220618,4670.1,4669.0,0.15877069]
[1755875206282,0.68676659,4670.0,4669.0,0.001]
[1755875206433,0.66,4669.0,4667.2,0.001]
[1755875206633,3.66,4668.0,4667.2,0.001]
[1755875206837,0.66,4667.9,4667.2,0.001]
[1755875207048,3.0,4668.0,4666.8,0.02]
[1755875207049,0.66,4667.7,4666.8,0.02]
[1755875207265,0.02678035,4667.6,4666.8,0.02]
[1755875207578,0.02678035,4667.6,4663.9,1.646]
[1755875207579,0.66,4666.8,4663.9,1.646]
[1755875207751,3.66,4666.2,4665.3,0.15821775]
[1755875207946,3.66,4666.2,4664.2,0.1072]
[1755875207947,0.1072,4664.9,4664.2,0.1072]
[1755875208149,0.1072,4664.9,4662.8,0.02]
[1755875208356,0.1072,4663.9,4662.8,0.02]
[1755875208858,0.02679987,4664.2,4663.6,0.16231029]
[1755875209170,0.02679585,4664.9,4663.6,0.16231029]
[1755875209376,0.4712,4665.8,4663.6,0.16231029]
[1755875209544,1.646,4666.3,4663.6,0.16231029]
[1755875209545,0.4712,4665.0,4663.6,0.16231029]
[1755875209747,0.02679585,4664.9,4663.6,0.16231029]
[1755875210155,0.80678465,4665.0,4663.6,0.16231029]
[1755875210359,0.4712,4665.9,4663.6,0.16231029]
[1755875210563,0.02679068,4665.8,4663.7,0.3721]
[1755875210883,0.02679068,4665.8,4663.6,0.16231029]
[1755875210884,0.4712,4665.7,4663.6,0.16231029]
[1755875211086,0.66,4665.5,4663.6,0.16231029]
[1755875211287,0.66,4665.3,4663.6,0.16231029]
[1755875211490,0.02679413,4665.2,4663.6,0.16231029]
[1755875211649,0.4712,4665.4,4663.6,0.16231029]
[1755875211850,0.02679356,4665.3,4663.6,1.80931029]
[1755875212065,0.33556112,4665.9,4663.9,5.5191]
[1755875212384,0.02678093,4667.5,4664.5,3.0]
[1755875212598,0.02678093,4667.5,4664.8,3.0]
[1755875212784,1.647,4668.0,4664.9,1.647]
[1755875213094,2.14066625,4671.5,4664.9,1.647]
[1755875213095,0.4712,4668.9,4665.3,0.66]
[1755875213299,0.02677347,4668.8,4665.9,3.66]
[1755875213584,0.4712,4669.1,4666.1,3.0]
[1755875213783,0.02677232,4669.0,4666.1,3.0]
[1755875214114,0.02677232,4669.0,4666.0,11.229]
[1755875214115,0.4712,4668.9,4666.0,11.229]
[1755875214292,0.02677347,4668.8,4666.1,0.15991271]
[1755875214603,0.66,4668.6,4666.0,6.794]
[1755875214770,0.91377254,4668.5,4666.0,6.794]
[1755875214952,1.1312,4668.4,4666.0,1.647]
[1755875215158,0.02,4666.8,4666.0,1.80562857]
[1755875215383,0.02,4666.8,4666.0,0.15862857]
[1755875215663,0.02,4666.8,4662.9,2.99876234]
[1755875215664,0.68678552,4666.7,4664.2,1.647]
[1755875215856,2.1182,4666.6,4664.2,1.647]
[1755875216061,0.49798667,4666.5,4664.2,1.647]
[1755875216621,0.49798667,4666.5,4664.2,1.80577029]
[1755875216622,0.02678667,4666.5,4664.2,1.80577029]
[1755875216887,2.1182,4666.6,4664.2,1.80577029]
[1755875217086,0.02678667,4666.5,4664.2,1.80577029]
[1755875217572,0.4712,4666.4,4664.2,1.80577029]
[1755875217900,0.02678781,4666.3,4664.2,1.80577029]
[1755875218096,0.4712,4666.2,4664.2,1.80577029]
[1755875218258,0.4712,4666.2,4664.8,0.001]
[1755875218457,0.02678896,4666.1,4664.8,0.001]
[1755875218772,0.1072,4665.7,4665.1,0.1072]
[1755875218972,0.1072,4665.4,4664.8,0.001]
[1755875219196,0.02679356,4665.3,4664.8,0.001]
[1755875220292,1.647,4666.6,4664.8,0.001]
[1755875220470,0.1072,4666.6,4665.2,0.1072]
[1755875220807,0.02678667,4666.5,4665.8,0.1072]
[1755875221003,0.4712,4666.5,4664.8,0.001]
[1755875221204,0.1072,4665.7,4665.1,0.1072]
[1755875221505,0.02679183,4665.6,4664.8,0.001]
[1755875221802,0.66,4666.2,4664.8,0.001]
[1755875221803,0.02678896,4666.1,4664.8,0.001]
[1755875222004,0.66,4665.4,4664.8,0.001]
[1755875222168,0.1072,4664.9,4664.8,0.001]
[1755875222375,0.1072,4664.9,4663.8,0.02]
[1755875222707,0.1072,4664.3,4663.8,0.02]
[1755875222905,0.7672,4663.9,4661.8,0.1272]
[1755875223090,0.49799987,4664.2,4661.8,0.02]
[1755875223091,0.1072,4662.9,4661.8,0.02]
[1755875223471,0.5784,4662.9,4661.8,0.02]
[1755875223666,0.5784,4662.9,4658.3,1.647]
[1755875223667,0.66,4662.8,4658.3,1.647]
[1755875223975,3.4712,4662.9,4658.1,2.1467856]
[1755875223976,0.66,4661.3,4658.1,2.1467856]
[1755875224197,3.0,4661.4,4657.5,0.4331]
[1755875224198,3.66,4661.1,4657.5,0.4331]
[1755875224512,0.66,4661.1,4658.3,1.647]
[1755875224728,0.66,4660.9,4658.3,1.647]
[1755875225018,3.66,4660.5,4657.1,0.001]
[1755875225172,0.66,4658.9,4657.1,0.001]
[1755875225367,0.66,4658.6,4657.1,0.001]
[1755875225604,0.02683267,4658.5,4657.1,0.001]
[1755875225921,16.3192002,4657.9,4657.1,0.001]
[1755875226105,0.66,4657.7,4657.1,0.001]
[1755875226408,5.12995672,4657.8,4657.1,0.001]
[1755875226409,1.67483785,4657.6,4657.1,0.001]
[1755875226812,0.4712,4657.5,4657.1,0.001]
[1755875227105,4.42683843,4657.5,4657.1,0.001]
[1755875227305,1.648,4658.6,4657.1,0.001]
[1755875227511,1.67483267,4658.5,4657.1,0.001]
[1755875227708,0.66,4658.3,4657.1,0.001]
[1755875227912,0.02683439,4658.2,4656.7,0.001]
[1755875228110,3.66,4657.7,4655.8,0.02]
[1755875228271,0.66,4657.5,4655.8,0.02]
[1755875228476,10.04123785,4657.6,4655.8,0.02]
[1755875228477,0.66,4657.2,4655.8,0.02]
[1755875228678,7.42512379,4657.4,4655.8,0.02]
[1755875228872,0.66,4657.0,4655.8,0.02]
[1755875229215,1.648,4657.4,4655.8,0.02]
[1755875229416,0.4554,4657.0,4655.8,0.02]
[1755875229616,6.056,4657.4,4655.8,0.02]
[1755875229818,4.89323958,4657.3,4655.8,0.02]
[1755875230018,0.33538603,4657.1,4655.8,0.02]
[1755875230221,0.02684131,4657.0,4655.8,0.02]
[1755875230404,1.649,4657.8,4655.9,0.4533]
[1755875230757,0.02683728,4657.7,4655.8,0.02]
[1755875230911,0.02683785,4657.6,4655.8,0.02]
[1755875231108,1.649,4658.0,4655.8,0.02]
[1755875231639,1.98510852,4658.9,4655.9,0.4533]
[1755875231940,0.48223094,4658.8,4655.8,0.02]
[1755875232107,0.33609023,4658.2,4655.8,0.02]
[1755875232300,0.02683497,4658.1,4655.8,0.02]
[1755875232540,0.4554,4658.0,4655.8,0.02]
[1755875232743,0.02683612,4657.9,4655.8,0.02]
[1755875232966,0.0268367,4657.8,4655.8,0.02]
[1755875233120,4.8704,4658.0,4655.9,2.14780817]
[1755875233456,0.02,4657.8,4655.8,0.02]
[1755875233657,2.1054,4657.7,4655.8,0.02]
[1755875233833,0.66,4657.5,4655.8,0.02]
[1755875234018,0.1072,4655.9,4655.8,0.02]
[1755875234564,0.58944765,4655.9,4655.8,0.02]
[1755875234735,0.1072,4655.9,4655.8,0.02]
[1755875234933,0.03,4655.0,4654.9,0.4533]
[1755875235428,0.4554,4657.7,4654.9,0.4533]
[1755875235429,0.02,4657.8,4655.2,0.66]
[1755875235644,0.02,4657.8,4656.6,2.14746156]
[1755875235864,0.02,4657.8,4656.5,1.65]
[1755875236064,0.02,4657.8,4656.2,1.65]
[1755875236265,0.02,4657.8,4656.3,3.4533]
[1755875236429,0.02,4657.8,4657.7,2.14698241]
[1755875236635,0.2480919,4660.9,4657.3,1.65]
[1755875236830,14.33824022,4662.7,4658.3,2.14667743]
[1755875236831,0.02681943,4660.8,4658.3,2.14667743]
[1755875237128,1.67681943,4660.8,4658.1,0.4533]
[1755875237462,1.67681943,4660.8,4657.3,1.65]
[1755875237463,0.4554,4660.7,4658.2,0.4533]
[1755875237646,0.02682058,4660.6,4658.2,0.4533]
[1755875237845,0.4554,4660.5,4657.3,1.80863465]
[1755875238042,0.02682173,4660.4,4657.3,1.80863465]
[1755875238369,0.4554,4660.5,4657.4,0.4533]
[1755875238667,0.02682173,4660.4,4658.1,2.14679592]
[1755875238870,1.65,4660.8,4658.8,2.14645105]
[1755875239042,0.02682,4660.7,4658.4,1.65]
[1755875239368,0.4554,4660.6,4658.4,1.65]
[1755875239527,0.02682115,4660.5,4657.5,1.65]
[1755875239725,0.66,4660.3,4657.5,1.65]
[1755875239962,0.66,4660.1,4657.5,1.65]
[1755875240171,0.02682403,4660.0,4657.5,1.65]
[1755875240333,0.66,4659.8,4657.5,1.65]
[1755875240534,1.65,4659.7,4657.6,0.4533]
[1755875240761,12.6592002,4661.9,4657.7,0.66]
[1755875240762,1.65,4660.2,4657.7,0.66]
[1755875241032,0.4554,4661.3,4657.9,3.0]
[1755875241033,0.02682345,4660.1,4657.9,3.0]
[1755875241233,0.02681827,4661.0,4658.3,3.0]
[1755875241468,0.02681827,4661.0,4658.4,0.4533]
[1755875241771,0.4554,4660.9,4658.5,0.4533]
[1755875241982,0.4554,4660.9,4657.4,0.4533]
[1755875241983,0.68681943,4660.8,4657.4,0.4533]
[1755875242184,0.66,4660.6,4657.4,2.60038323]
[1755875242343,1.65,4661.2,4658.6,2.14652631]
[1755875242543,1.65,4661.2,4658.6,0.4533]
[1755875242544,0.0268177,4661.1,4658.6,0.4533]
[1755875242863,1.65,4661.2,4658.6,0.4533]
[1755875243065,0.4822177,4661.1,4657.5,2.1033]
[1755875243268,4.8792177,4661.1,4657.6,0.4533]
[1755875243585,1.65,4661.2,4657.8,0.02]
[1755875243758,1.65,4661.2,4657.9,0.4533]
[1755875243759,0.4554,4661.0,4657.9,0.4533]
[1755875244141,1.65,4661.2,4658.3,3.0]
[1755875244379,1.65,4661.2,4657.8,3.02]
[1755875244380,0.0268177,4661.1,4658.5,3.0]
[1755875244552,0.02681827,4661.0,4659.2,2.14626037]
[1755875244753,0.02681827,4661.0,4658.6,2.1033]
[1755875244754,0.4554,4660.9,4658.6,1.65]
[1755875244979,0.02681943,4660.8,4658.6,1.65]
[1755875245150,1.65,4661.2,4658.8,2.14647548]
[1755875245474,0.4822177,4661.1,4658.7,0.4533]
[1755875245650,1.65,4661.2,4658.7,0.4533]
[1755875245651,0.002,4661.3,4660.6,0.1072]
[1755875245853,0.002,4661.3,4659.8,1.65]
[1755875246056,0.1072,4663.2,4661.2,0.1072]
[1755875246276,0.1072,4664.0,4662.2,2.14490851]
[1755875246576,0.0268016,4663.9,4662.2,0.09281168]
[1755875246781,0.0268016,4663.9,4663.1,0.1072]
[1755875246989,0.1072,4663.7,4663.1,0.1072]
[1755875247192,0.1072,4663.7,4661.8,0.61529331]
[1755875247193,0.1072,4663.2,4662.5,0.1072]
[1755875247393,0.0268062,4663.1,4661.3,6.4963]
[1755875247691,0.02680217,4663.8,4661.3,6.4963]
[1755875247842,0.76138345,4667.0,4661.3,6.4963]
[1755875247843,0.02680275,4663.7,4661.4,3.4533]
[1755875248045,0.4554,4664.1,4661.6,3.0]
[1755875248283,0.02680102,4664.0,4661.5,2.59852689]
[1755875248587,0.02680102,4664.0,4661.5,0.4533]
[1755875248888,0.02680102,4664.0,4661.5,2.59848775]
[1755875249182,0.02680102,4664.0,4661.3,1.65]
[1755875249183,0.66,4663.8,4661.3,1.65]
[1755875249387,0.02680275,4663.7,4661.3,1.65]
[1755875249698,1.65,4663.6,4661.4,0.4533]
[1755875249852,0.33565191,4664.6,4661.4,0.4533]
[1755875249853,0.33565191,4664.6,4662.1,3.66]
[1755875250052,0.002,4665.1,4662.3,3.66]
[1755875250351,0.002,4665.1,4663.3,2.14440417]
[1755875250588,0.002,4665.1,4663.4,0.66]
[1755875250810,0.002,4665.1,4663.6,3.0]
[1755875250954,0.002,4665.1,4663.8,3.0]
[1755875251156,0.002,4665.1,4663.6,3.0]
[1755875251492,0.002,4665.1,4663.5,2.1023]
[1755875252089,0.002,4665.1,4663.5,1.649]
[1755875252294,0.02679528,4665.0,4663.5,1.649]
[1755875252599,0.0287947,4665.1,4663.5,1.649]
[1755875252966,0.02,4663.8,4663.5,1.649]
[1755875253301,0.02,4663.8,4663.6,0.4533]
[1755875253755,0.02,4663.8,4663.7,0.4533]
[1755875254701,0.0192,4663.8,4663.5,1.649]
[1755875255755,0.0192,4663.8,4662.6,1.649]
[1755875257167,0.02680275,4663.7,4662.0,4.359]
[1755875257595,0.1072,4663.4,4662.7,0.1072]
[1755875257895,0.0192,4663.8,4662.1,0.4533]
[1755875257896,0.04600217,4663.8,4662.1,0.4533]
[1755875258053,0.0192,4663.8,4662.1,0.4533]
[1755875258476,0.0192,4663.8,4662.8,0.02]
[1755875258477,0.02680275,4663.7,4662.8,0.02]
[1755875259065,0.0192,4663.8,4662.8,0.02]
[1755875259477,0.0192,4663.8,4662.9,4.8125]
[1755875259678,0.0192,4663.8,4663.0,3.0]
[1755875259887,0.002,4665.1,4664.1,0.66]
[1755875260197,0.002,4665.1,4664.4,0.66]
[1755875260365,0.002,4666.6,4665.2,2.14350583]
[1755875260705,0.002,4666.6,4664.4,0.66]
[1755875260876,0.002,4666.6,4664.3,0.4675]
[1755875261077,0.4465,4666.4,4664.3,4.8115]
[1755875261302,0.02878896,4666.1,4664.3,4.344]
[1755875261485,0.02878896,4666.1,4664.2,1.648]
[1755875261690,0.002,4666.1,4664.3,1.1275]
[1755875261915,0.002,4666.1,4664.5,0.66]
[1755875262204,0.002,4666.1,4665.6,2.1433013]
[1755875262410,0.002,4666.1,4665.6,4.351]
[1755875262758,0.002,4666.1,4665.7,2.61080111]
[1755875263029,0.002,4666.1,4665.5,1.648]
[1755875264404,0.002,4666.1,4665.5,2.1155]
[1755875264567,0.002,4666.1,4665.5,1.648]
[1755875265196,0.002,4666.1,4664.5,4.49580657]
[1755875265399,0.02878896,4666.1,4664.5,4.49580657]
[1755875265708,0.002,4666.1,4664.6,4.338]
[1755875265910,0.002,4666.1,4664.7,3.0]
[1755875266064,0.002,4666.1,4665.1,2.14356745]
[1755875266259,0.002,4666.1,4664.8,4.337]
[1755875266486,0.002,4666.1,4665.1,0.66]
[1755875266689,0.002,4666.1,4665.7,2.14330111]
[1755875266889,0.0192,4665.8,4665.7,2.14330111]
[1755875267192,0.0192,4665.8,4665.7,4.335]
[1755875267367,0.0192,4665.8,4665.6,4.334]
[1755875267781,0.0192,4665.8,4665.7,0.1072]
[1755875268162,0.0192,4665.8,4665.7,4.4382]
[1755875268382,0.0192,4665.8,4665.7,0.1072]
[1755875268962,0.4657,4665.8,4665.7,0.1072]
[1755875269396,0.4657,4665.8,4665.3,0.1072]
[1755875269594,0.02679126,4665.7,4663.8,4.344]
[1755875269892,0.1072,4665.3,4663.8,0.17828474]
[1755875270094,0.1072,4664.8,4664.1,0.1072]
[1755875270297,0.4465,4665.3,4663.8,0.17828474]
[1755875270494,0.1072,4665.3,4664.6,0.1072]
[1755875270671,0.04599068,4665.8,4665.2,0.1072]
[1755875270867,0.04599068,4665.8,4664.9,0.1072]
[1755875270868,0.1072,4665.6,4664.9,0.1072]
[1755875271175,0.02679241,4665.5,4664.9,0.1072]
[1755875271378,0.0192,4665.8,4663.9,3.79211206]
[1755875271569,0.0192,4665.8,4665.4,0.1072]
[1755875271776,0.0192,4665.8,4664.3,2.14394207]
[1755875271967,0.0192,4665.8,4665.7,0.1072]
[1755875272515,0.0192,4665.8,4663.9,1.648]
[1755875272516,0.4657,4665.8,4665.1,0.1072]
[1755875272667,0.4657,4665.8,4664.0,3.0]
[1755875272668,0.0192,4665.8,4664.0,3.0]
[1755875272870,0.0192,4665.8,4665.7,0.1072]
[1755875273575,0.4657,4665.8,4663.9,1.648]
[1755875273797,0.02679126,4665.7,4665.3,0.1072]
[1755875273998,0.47329126,4665.7,4665.3,0.1072]
[1755875274665,0.02679126,4665.7,4665.3,0.1072]
[1755875274887,0.4465,4665.6,4665.3,0.1072]
[1755875275081,0.47329241,4665.5,4665.3,0.1072]
[1755875275389,0.1072,4665.4,4664.6,0.1072]
[1755875275678,0.0192,4665.8,4664.0,1.648]
[1755875275883,0.0192,4665.8,4664.0,4.648]
[1755875276074,0.0192,4665.8,4664.1,2.14403636]
[1755875276290,0.0192,4665.8,4664.2,0.66]
[1755875276597,0.0192,4665.8,4665.1,2.14353588]
[1755875276902,0.002,4666.6,4665.4,0.66]
[1755875277104,0.002,4666.6,4666.5,2.14293367]
[1755875277514,0.002,4666.6,4666.4,1.648]
[1755875278003,0.002,4666.6,4666.4,1.90775539]
[1755875278624,0.002,4666.6,4666.4,1.81161998]
[1755875279090,0.0012,4666.6,4666.4,1.81161998]
[1755875279689,0.4465,4666.5,4664.8,0.02]
[1755875279884,0.02678724,4666.4,4664.8,0.02]
[1755875280841,0.4465,4666.5,4664.8,0.02]
[1755875281131,0.02678724,4666.4,4664.8,0.02]
[1755875281503,0.4465,4666.5,4664.8,0.02]
[1755875281704,0.02678724,4666.4,4665.8,0.02]
[1755875282040,0.66,4666.2,4665.8,0.02]
[1755875282336,0.66,4666.2,4664.8,0.02]
[1755875282337,0.66,4666.0,4664.8,0.02]
[1755875282490,0.02679011,4665.9,4664.8,0.02]
[1755875282688,0.66,4665.7,4664.8,0.02]
[1755875283000,0.58662084,4665.6,4664.8,0.02]
[1755875283197,1.1199472,4665.5,4664.8,0.02]
[1755875283389,0.02679298,4665.4,4664.8,0.02]
[1755875283583,0.66,4665.2,4664.0,0.15744068]
[1755875283784,0.66,4665.0,4664.0,0.15744068]
[1755875284133,0.66,4664.8,4661.8,0.1158793]
[1755875284422,0.66,4664.8,4661.8,0.02]
[1755875284423,0.66,4664.6,4661.8,0.02]
[1755875284736,1.05307249,4664.5,4661.8,0.02]
[1755875285042,0.45990284,4664.4,4662.8,0.17786773]
[1755875285323,0.0267993,4664.3,4662.8,0.17786773]
[1755875285659,0.1072,4663.9,4663.2,0.1072]
[1755875286154,0.02680045,4664.1,4662.8,0.17786773]
[1755875286363,0.5537,4663.9,4663.2,0.1072]
[1755875286560,0.66,4663.8,4663.2,0.1072]
[1755875286717,0.66,4663.6,4663.2,0.1072]
[1755875287022,0.4864928,4663.7,4661.8,0.02]
[1755875287023,3.66,4663.4,4661.8,0.02]
[1755875287221,0.66,4662.8,4661.8,0.02]
[1755875287547,0.66,4661.8,4659.9,0.1072]
[1755875287751,0.1072,4660.9,4659.8,0.02]
[1755875288117,0.02681885,4660.9,4659.8,0.02]
[1755875288634,0.02681885,4660.9,4660.1,0.16242174]
[1755875289157,0.02681252,4662.0,4660.1,0.16242174]
[1755875289475,0.469,4661.9,4660.1,0.16242174]
[1755875289643,0.68681367,4661.8,4659.8,0.02]
[1755875289827,0.66,4661.6,4659.8,0.02]
[1755875290019,0.469,4661.9,4659.8,0.02]
[1755875290020,0.0268154,4661.5,4660.1,0.15746561]
[1755875290342,0.02681367,4661.8,4660.1,0.15746561]
[1755875290545,0.02681425,4661.7,4660.1,0.15746561]
[1755875290713,0.469,4661.9,4660.1,0.15746561]
[1755875290917,0.68681367,4661.8,4659.8,0.02]
[1755875291144,0.66,4661.6,4660.1,0.16505882]
[1755875291343,0.0268154,4661.5,4659.8,0.02]
[1755875291566,0.469,4661.4,4659.8,0.02]
[1755875291851,0.02681655,4661.3,4659.8,0.02]
[1755875292057,0.469,4661.2,4659.8,0.02]
[1755875292355,0.0268177,4661.1,4659.8,0.02]
[1755875292520,0.469,4661.1,4659.8,0.02]
[1755875292717,0.02681827,4661.0,4659.8,0.02]
[1755875292918,1.649,4663.2,4660.9,0.4688]
[1755875293145,0.0268062,4663.1,4661.0,1.649]
[1755875293348,12.6592002,4662.6,4660.3,0.001]
[1755875293560,12.6592002,4661.6,4660.3,0.001]
[1755875293775,0.66,4661.4,4660.3,0.001]
[1755875293975,0.66,4661.4,4659.8,0.02]
[1755875293976,3.66,4660.0,4658.6,1.0]
[1755875294280,3.66,4659.8,4658.6,1.0]
[1755875294436,3.0,4659.6,4658.6,1.0]
[1755875294644,3.66,4658.9,4658.6,1.0]
[1755875294948,3.66,4658.7,4657.8,0.02]
[1755875295146,36.46783094,4658.8,4656.4,0.001]
[1755875295147,3.66,4657.3,4656.4,0.001]
[1755875295358,3.66,4657.1,4656.4,0.001]
[1755875295563,0.02684131,4657.0,4656.4,0.001]
[1755875295730,1.15584131,4657.0,4656.4,0.001]
[1755875296537,8.48384131,4657.0,4656.4,0.001]
[1755875296888,9.47028413,4657.0,4656.4,0.001]
[1755875297243,4.129,4657.0,4656.4,0.001]
[1755875297568,8.48284131,4657.0,4656.4,0.001]
[1755875297734,8.456,4657.0,4656.4,0.001]
[1755875297938,3.66,4657.0,4656.4,0.001]
[1755875298143,7.46104131,4657.0,4656.4,0.001]
[1755875298344,7.4342,4657.0,4656.4,0.001]
[1755875298539,9.47152,4657.0,4656.4,0.001]
[1755875298778,5.14452,4657.0,4656.4,0.001]
[1755875298980,3.1072,4657.0,4656.4,0.001]
[1755875299151,8.59104131,4657.0,4656.4,0.001]
[1755875299350,8.5642,4657.0,4656.4,0.001]
[1755875300141,8.457,4657.0,4656.4,0.001]
[1755875300345,4.2362,4657.0,4656.4,0.001]
[1755875300581,0.33620279,4657.3,4656.4,0.001]
[1755875300789,0.02684016,4657.2,4656.4,0.001]
[1755875301088,0.66,4657.1,4656.4,0.001]
[1755875301385,0.02684131,4657.0,4656.4,0.001]
[1755875301581,2.45516148,4658.0,4656.4,0.001]